bitfinex/quotes_BTCUSD_20251219
["timestamp","ask_amount","ask_price","bid_price","bid_amount"]
[1766116476159,0.45785,87242.0,87222.0,0.47581]
[1766116476407,0.04591853,87251.0,87225.0,0.47581]
[1766116476622,0.04591853,87251.0,87230.0,0.60111]
[1766116476623,0.0907,87250.0,87230.0,0.60111]
[1766116476795,0.01146092,87253.0,87234.0,0.60111]
[1766116476998,0.01146105,87252.0,87235.0,0.60111]
[1766116477152,0.01146144,87249.0,87235.0,0.60111]
[1766116477717,0.01146158,87248.0,87231.0,0.05172]
[1766116477916,0.01146144,87249.0,87231.0,0.05172]
[1766116478077,0.01146158,87248.0,87228.0,0.60111]
[1766116478253,0.01146158,87248.0,87229.0,0.05172]
[1766116478463,0.01146197,87245.0,87229.0,0.05172]
[1766116478970,0.01146184,87246.0,87229.0,0.05172]
[1766116479176,0.22924776,87242.0,87229.0,0.05172]
[1766116479304,0.01146236,87242.0,87230.0,0.05172]
[1766116479728,0.01146276,87239.0,87231.0,0.0058]
[1766116479961,0.01146289,87238.0,87232.0,0.0058]
[1766116480328,0.01146302,87237.0,87232.0,0.0058]
[1766116480549,0.45785,87255.0,87237.0,0.0011]
[1766116480864,0.01146039,87257.0,87239.0,0.47581]
[1766116481060,0.10216052,87256.0,87240.0,0.60111]
[1766116481238,0.24066868,87257.0,87240.0,0.60111]
[1766116481239,0.0907,87257.0,87240.0,0.60111]
[1766116481608,0.10216039,87257.0,87241.0,0.0058]
[1766116481740,0.01146066,87255.0,87241.0,0.0058]
[1766116482245,0.24067426,87255.0,87241.0,0.0058]
[1766116482442,0.0115703,87253.0,87241.0,0.0058]
[1766116482651,0.00010938,87253.0,87241.0,0.0058]
[1766116482850,0.01146118,87251.0,87241.0,0.0058]
[1766116483051,0.24068215,87252.0,87241.0,0.0058]
[1766116483250,0.01146118,87251.0,87241.0,0.0058]
[1766116483463,0.01146131,87250.0,87241.0,0.0058]
[1766116483866,0.2406901,87250.0,87241.0,0.0058]
[1766116484129,0.01146131,87250.0,87231.0,0.61552]
[1766116484350,0.24068859,87250.0,87232.0,0.05172]
[1766116484551,0.46552,87252.0,87234.0,1.11081]
[1766116484839,0.46552,87252.0,87235.0,0.0058]
[1766116485259,0.47698105,87252.0,87235.0,0.0058]
[1766116485461,0.46552,87252.0,87235.0,0.0058]
[1766116485666,0.00010938,87253.0,87238.0,0.61552]
[1766116485865,0.00010938,87253.0,87239.0,0.62132]
[1766116486399,0.0115703,87253.0,87239.0,0.62132]
[1766116486644,0.01146118,87251.0,87239.0,0.0058]
[1766116486793,0.2292211,87252.0,87239.0,0.0058]
[1766116486993,0.24068215,87252.0,87239.0,0.0058]
[1766116487200,0.24068215,87252.0,87239.0,0.62132]
[1766116487400,0.01146158,87248.0,87240.0,0.0058]
[1766116487600,0.01146184,87246.0,87240.0,0.0058]
[1766116487795,0.0114621,87244.0,87238.0,0.0058]
[1766116487976,0.02520578,87245.0,87238.0,0.0058]
[1766116488178,0.0114621,87244.0,87238.0,0.0058]
[1766116488390,0.46552,87245.0,87238.0,0.0058]
[1766116488724,0.01146223,87243.0,87238.0,0.0058]
[1766116488925,0.01146223,87243.0,87235.0,0.0041502]
[1766116488926,0.0114625,87241.0,87235.0,0.0041502]
[1766116489127,0.02520631,87241.0,87235.0,2e-07]
[1766116489285,0.02520631,87241.0,87220.0,0.49529]
[1766116489286,0.22926986,87234.0,87220.0,0.49529]
[1766116489489,0.24073192,87234.0,87225.0,0.00605152]
[1766116489891,0.46552,87237.0,87225.0,0.00605152]
[1766116490209,0.01146328,87235.0,87225.0,0.00605152]
[1766116490723,0.01146342,87234.0,87225.0,0.00605152]
[1766116490956,0.01146368,87232.0,87225.0,0.00025152]
[1766116491149,0.24073788,87232.0,87225.0,1.52e-06]
[1766116491352,0.01146328,87235.0,87225.0,1.52e-06]
[1766116491510,0.01726289,87238.0,87225.0,1.52e-06]
[1766116491713,0.22928943,87226.0,87225.0,1.52e-06]
[1766116491919,0.22928886,87227.0,87225.0,1.52e-06]
[1766116492124,0.22928943,87226.0,87225.0,1.52e-06]
[1766116492335,0.24303324,87226.0,87225.0,1.52e-06]
[1766116492765,0.01146526,87220.0,87212.0,1.52e-06]
[1766116492939,0.01146565,87217.0,87209.0,0.0058]
[1766116493158,0.24078229,87216.0,87207.0,0.0058]
[1766116493330,0.00010932,87217.0,87216.0,0.0011]
[1766116493525,0.00010932,87217.0,87207.0,0.0058]
[1766116493932,0.01146604,87214.0,87207.0,0.0058]
[1766116494131,0.01146618,87213.0,87207.0,0.0058]
[1766116494336,0.01146591,87215.0,87204.0,0.61552]
[1766116494537,0.24078671,87215.0,87205.0,0.0058]
[1766116494851,0.01146696,87207.0,87194.0,0.49529]
[1766116495035,0.24080678,87207.0,87195.0,0.0058]
[1766116495253,0.01146762,87202.0,87195.0,0.0058]
[1766116495460,0.01146933,87189.0,87179.0,0.61552]
[1766116495671,0.01146946,87188.0,87180.0,0.0058]
[1766116495876,0.01146946,87188.0,87178.0,0.0058]
[1766116496098,0.01146946,87188.0,87174.0,0.0502]
[1766116496099,0.01147012,87183.0,87175.0,0.0058]
[1766116496310,0.01374381,87182.0,87175.0,0.0058]
[1766116496510,0.22941304,87179.0,87174.0,0.0502]
[1766116496715,0.01147038,87181.0,87174.0,0.0502]
[1766116496911,0.01147065,87179.0,87168.0,0.05182]
[1766116497122,0.05036486,87173.0,87161.0,0.0058]
[1766116497325,0.25464936,87172.0,87161.0,0.0058]
[1766116497526,0.24670555,87172.0,87161.0,0.0058]
[1766116497831,0.47132,87172.0,87157.0,0.0004]
[1766116498671,0.58263,87171.0,87157.0,0.0004]
[1766116498859,0.46552,87170.0,87157.0,0.0004]
[1766116499244,0.0058,87172.0,87157.0,0.0004]
[1766116499245,0.46552,87168.0,87157.0,0.0004]
[1766116499607,0.46552,87168.0,87167.0,4.08e-06]
[1766116499900,1.04815,87168.0,87167.0,4.08e-06]
[1766116500237,0.46552,87168.0,87167.0,4.08e-06]
[1766116500642,0.0058,87172.0,87168.0,0.0011]
[1766116501044,0.05036486,87171.0,87168.0,0.0011]
[1766116501344,0.46552,87168.0,87157.0,0.0004]
[1766116501568,0.46552,87173.0,87157.0,0.0004]
[1766116501773,0.46552,87168.0,87141.0,0.0907]
[1766116502113,0.46552,87153.0,87134.0,0.49529]
[1766116502393,0.69503396,87141.0,87129.0,0.05]
[1766116502594,0.01147604,87138.0,87129.0,0.05]
[1766116502776,0.0058,87140.0,87130.0,0.56365]
[1766116502975,0.0058,87140.0,87129.0,0.50095]
[1766116502976,0.01147591,87139.0,87129.0,0.50095]
[1766116503180,0.00058477,87152.0,87129.0,0.0558]
[1766116503342,0.01727433,87151.0,87140.0,0.56365]
[1766116503544,0.01147499,87146.0,87129.0,0.05616476]
[1766116503795,0.01147525,87144.0,87129.0,0.05616476]
[1766116503995,0.01147565,87141.0,87129.0,0.05616476]
[1766116504223,0.01374381,87140.0,87129.0,0.05036476]
[1766116504357,0.05739288,87162.0,87135.0,0.56365]
[1766116504558,0.05739288,87162.0,87130.0,0.90878028]
[1766116504559,0.01147315,87160.0,87145.0,0.56365]
[1766116504832,0.0907,87163.0,87145.0,0.56365]
[1766116505023,0.0058,87165.0,87151.0,1.0146]
[1766116505608,0.0058,87165.0,87145.0,0.0058]
[1766116505810,0.01727249,87165.0,87145.0,0.56945]
[1766116506010,0.01147262,87164.0,87145.0,1.0204]
[1766116506278,0.01147381,87155.0,87145.0,0.0008]
[1766116506580,0.0114742,87152.0,87138.0,0.0058]
[1766116506987,0.01147433,87151.0,87138.0,0.0058]
[1766116507117,0.01147486,87147.0,87132.0,0.0058]
[1766116507329,0.46388,87151.0,87133.0,0.56365]
[1766116507530,0.46388,87151.0,87132.0,0.0058]
[1766116507531,0.46388,87151.0,87132.0,1.0204]
[1766116507736,0.22949526,87148.0,87132.0,0.0058]
[1766116507935,0.0058,87148.0,87132.0,0.45675]
[1766116508191,0.01147499,87146.0,87132.0,1.0204]
[1766116508343,0.01727473,87148.0,87133.0,0.56365]
[1766116508570,0.01147486,87147.0,87133.0,0.56365]
[1766116508772,0.0058,87148.0,87135.0,0.45095]
[1766116508979,0.01147486,87147.0,87135.0,0.45095]
[1766116509544,0.0058,87148.0,87135.0,0.45095]
[1766116509899,0.0058,87148.0,87132.0,0.0058]
[1766116509900,0.0058,87148.0,87138.0,0.56365]
[1766116510057,0.0058,87148.0,87132.0,1.0204]
[1766116510246,0.01727473,87148.0,87133.0,0.56365]
[1766116510462,0.29131893,87154.0,87133.0,0.56365]
[1766116510649,0.10217354,87157.0,87138.0,0.45095]
[1766116510848,0.05036486,87155.0,87143.0,1.0146]
[1766116511146,0.01147407,87153.0,87143.0,1.0146]
[1766116511320,0.24095306,87154.0,87143.0,1.0146]
[1766116511321,0.01147433,87151.0,87143.0,1.0146]
[1766116511737,0.0058,87156.0,87132.0,0.0058]
[1766116511934,0.28688534,87164.0,87141.0,0.56365]
[1766116512136,0.06183682,87169.0,87140.0,0.61726639]
[1766116512137,0.38197648,87169.0,87152.0,0.45095]
[1766116512292,0.38197648,87169.0,87140.0,0.62306639]
[1766116512293,0.246715,87168.0,87155.0,0.56365]
[1766116512498,0.01727209,87168.0,87155.0,0.56365]
[1766116512699,0.01147223,87167.0,87155.0,0.56365]
[1766116512905,0.01147275,87163.0,87148.0,0.0058]
[1766116513110,0.0058,87162.0,87148.0,0.0058]
[1766116513638,0.01727288,87162.0,87148.0,0.0058]
[1766116513992,0.01147302,87161.0,87148.0,0.0058]
[1766116514311,0.01147367,87156.0,87148.0,0.0058]
[1766116514507,0.01147381,87155.0,87148.0,0.0058]
[1766116514760,0.01147367,87156.0,87141.0,0.0058]
[1766116514971,0.01147381,87155.0,87141.0,0.0058]
[1766116515178,0.0058,87154.0,87141.0,0.0058]
[1766116515386,0.0058,87159.0,87141.0,0.0058]
[1766116515581,0.0058,87159.0,87142.0,0.59296]
[1766116515838,0.0058,87159.0,87144.0,1.06101]
[1766116516039,0.01147157,87172.0,87150.0,0.46805]
[1766116516275,0.2294029,87183.0,87157.0,0.59296]
[1766116516489,0.01146999,87184.0,87150.0,0.04596]
[1766116516490,0.01147065,87179.0,87161.0,1.06101]
[1766116516695,0.01147144,87173.0,87158.0,0.0058]
[1766116516899,0.01147117,87175.0,87158.0,0.0058]
[1766116517302,0.01147078,87178.0,87159.0,0.59321632]
[1766116517534,0.01147131,87174.0,87159.0,0.59321632]
[1766116517730,0.22942199,87176.0,87159.0,0.59321632]
[1766116517941,0.01147117,87175.0,87159.0,0.00025632]
[1766116518111,0.0058,87177.0,87159.0,1.06126632]
[1766116518311,0.01727091,87177.0,87161.0,0.59296]
[1766116518705,0.01147144,87173.0,87160.0,0.46805]
[1766116518902,0.0058,87177.0,87160.0,0.46805]
[1766116519100,0.0058,87177.0,87159.0,0.00025632]
[1766116519101,0.0058,87177.0,87161.0,0.59296]
[1766116519324,0.0058,87177.0,87162.0,0.46805]
[1766116519572,0.01146973,87186.0,87163.0,0.59296]
[1766116519783,0.05743672,87243.0,87172.0,0.46805]
[1766116519784,0.24084531,87193.0,87172.0,0.46805]
[1766116519969,0.05742867,87194.0,87173.0,0.59876]
[1766116519970,0.01146959,87187.0,87173.0,0.59876]
[1766116520193,0.01146946,87188.0,87173.0,0.59876]
[1766116520373,0.24085629,87189.0,87175.0,0.46805]
[1766116520514,0.0114692,87190.0,87176.0,0.59296]
[1766116520709,0.01146933,87189.0,87176.0,0.59296]
[1766116520911,0.01726933,87189.0,87176.0,0.59296]
[1766116521114,0.01146946,87188.0,87176.0,0.59296]
[1766116521318,0.24085962,87188.0,87176.0,0.59296]
[1766116521540,0.01146959,87187.0,87175.0,0.46805]
[1766116521744,0.24085962,87188.0,87175.0,0.46805]
[1766116521948,0.01146959,87187.0,87173.0,0.0008]
[1766116522439,0.01146894,87192.0,87173.0,0.0008]
[1766116522658,0.01146815,87198.0,87173.0,0.0008]
[1766116522861,0.29118858,87201.0,87173.0,0.0008]
[1766116523084,0.01146802,87199.0,87188.0,0.59296]
[1766116523298,0.01146841,87196.0,87188.0,0.59296]
[1766116523502,0.01726788,87200.0,87188.0,0.59296]
[1766116523503,0.0058,87200.0,87188.0,0.59296]
[1766116523710,0.01146736,87204.0,87190.0,1.06101]
[1766116523912,0.29697492,87206.0,87191.0,0.01376288]
[1766116524127,0.01146749,87203.0,87184.0,0.0058]
[1766116524345,0.24081783,87203.0,87189.0,0.59296]
[1766116524556,0.01146762,87202.0,87190.0,1.06101]
[1766116524760,0.01146802,87199.0,87190.0,1.05991]
[1766116525356,0.01146815,87198.0,87190.0,1.05991]
[1766116525578,0.01146802,87199.0,87190.0,1.05991]
[1766116526571,0.01146802,87199.0,87186.0,0.0058]
[1766116526984,0.01146552,87218.0,87201.0,0.46805]
[1766116527183,0.01146591,87215.0,87203.0,1.06101]
[1766116527384,0.01726565,87217.0,87203.0,1.0611193]
[1766116527562,0.01146618,87213.0,87203.0,0.0001093]
[1766116527770,0.01146683,87208.0,87203.0,0.0001093]
[1766116527948,0.2408011,87209.0,87203.0,0.0001093]
[1766116528374,0.01146644,87211.0,87203.0,0.0001093]
[1766116528837,0.24079313,87212.0,87203.0,0.0001093]
[1766116529038,0.01146644,87211.0,87203.0,0.0001093]
[1766116529177,0.01146657,87210.0,87203.0,0.0001093]
[1766116529378,0.24080207,87209.0,87203.0,0.0001093]
[1766116529582,0.05036486,87208.0,87203.0,0.0001093]
[1766116529783,0.06183169,87208.0,87203.0,0.0001093]
[1766116530201,0.0114671,87206.0,87203.0,0.0001093]
[1766116530357,0.0114671,87206.0,87197.0,0.0058]
[1766116530358,0.01146736,87204.0,87197.0,0.00407943]
[1766116530557,0.01146749,87203.0,87197.0,0.00407943]
[1766116530920,0.01146749,87203.0,87171.0,0.03006427]
[1766116530921,0.01146828,87197.0,87188.0,0.0058]
[1766116531043,2.57e-06,87204.0,87187.0,0.4609]
[1766116531428,0.01146618,87213.0,87187.0,0.95156]
[1766116531596,0.0058,87214.0,87192.0,0.3586]
[1766116531779,0.0058,87214.0,87194.0,0.3586]
[1766116532176,0.05036486,87216.0,87194.0,0.3586]
[1766116532400,0.0058,87213.0,87194.0,0.3586]
[1766116533505,0.01146644,87211.0,87194.0,0.3586]
[1766116533728,0.0114667,87209.0,87194.0,0.3536]
[1766116533936,0.01146683,87208.0,87195.0,0.59296]
[1766116534342,0.0114667,87209.0,87187.0,0.00590953]
[1766116534343,0.06183248,87202.0,87187.0,0.00590953]
[1766116534550,0.01146788,87200.0,87187.0,0.59886953]
[1766116534836,0.01146788,87200.0,87187.0,0.59306953]
[1766116535040,0.01146815,87198.0,87187.0,0.59306953]
[1766116535263,0.01146815,87198.0,87187.0,0.00010953]
[1766116535430,0.01146959,87187.0,87172.0,0.59296]
[1766116535630,0.01146999,87184.0,87173.0,0.0907]
[1766116535842,0.24086765,87185.0,87166.0,0.3537]
[1766116535843,0.01147091,87177.0,87166.0,0.3537]
[1766116536002,0.01147091,87177.0,87150.0,0.61726639]
[1766116536003,0.0058,87176.0,87159.0,0.00605632]
[1766116536209,0.0058,87176.0,87161.0,0.68366]
[1766116536453,0.0058,87176.0,87163.0,0.59296]
[1766116536866,0.05036486,87174.0,87163.0,0.59296]
[1766116537712,0.06183617,87174.0,87163.0,0.59296]
[1766116537905,0.05036486,87174.0,87163.0,0.59296]
[1766116538106,0.0058,87176.0,87163.0,0.59296]
[1766116538691,0.01727104,87176.0,87163.0,0.59296]
[1766116538890,0.24669225,87176.0,87163.0,0.59296]
[1766116539090,0.01147144,87173.0,87163.0,0.59296]
[1766116539293,0.01147196,87169.0,87159.0,0.00605632]
[1766116539492,0.01147249,87165.0,87159.0,0.00025632]
[1766116539773,0.0058,87168.0,87159.0,0.00025632]
[1766116539994,0.01147275,87163.0,87159.0,0.00025632]
[1766116540197,0.01147381,87155.0,87150.0,0.001]
[1766116540438,0.05036486,87152.0,87150.0,0.001]
[1766116540997,0.05036486,87152.0,87140.0,0.59296]
[1766116541423,0.05036486,87152.0,87140.0,0.59332476]
[1766116541601,0.01147446,87150.0,87140.0,0.00036476]
[1766116541801,0.29132347,87152.0,87140.0,0.00036476]
[1766116541802,0.06183906,87152.0,87140.0,0.00036476]
[1766116542154,0.05036486,87152.0,87140.0,0.00036476]
[1766116542971,0.01147446,87150.0,87140.0,0.00036476]
[1766116543170,0.0114746,87149.0,87140.0,0.00036476]
[1766116543372,0.01147473,87148.0,87140.0,0.00036476]
[1766116543605,0.0114746,87149.0,87140.0,0.00036476]
[1766116543734,0.0114742,87152.0,87140.0,0.00036476]
[1766116543957,0.01147446,87150.0,87140.0,0.00036476]
[1766116544159,0.29131986,87154.0,87140.0,0.00036476]
[1766116544427,0.05036486,87152.0,87141.0,0.5913]
[1766116544948,0.0058,87155.0,87141.0,0.5913]
[1766116545212,0.05036486,87154.0,87141.0,0.5913]
[1766116545401,0.0618388,87154.0,87140.0,0.00036476]
[1766116545609,0.01147407,87153.0,87140.0,0.00036476]
[1766116545859,0.0618388,87154.0,87140.0,0.00036476]
[1766116545860,0.01147486,87147.0,87140.0,0.00036476]
[1766116546072,0.4598,87142.0,87140.0,4.76e-06]
[1766116546276,0.0058,87141.0,87140.0,4.76e-06]
[1766116546707,0.0058,87141.0,87140.0,2.76e-06]
[1766116547939,1.0452,87141.0,87140.0,2.76e-06]
[1766116548139,1.0452,87141.0,87129.0,2.76e-06]
[1766116548140,1.26894206,87130.0,87129.0,2.76e-06]
[1766116548344,0.01147828,87121.0,87115.0,0.0058]
[1766116548545,0.22956172,87123.0,87115.0,0.0058]
[1766116548546,0.01147802,87123.0,87115.0,0.0058]
[1766116549149,0.0058,87122.0,87106.0,0.0058]
[1766116549322,0.24684187,87122.0,87106.0,0.0058]
[1766116549526,0.01727815,87122.0,87106.0,0.0058]
[1766116549733,0.01147842,87120.0,87105.0,0.0907]
[1766116549883,0.01147855,87119.0,87105.0,0.0907]
[1766116550086,0.01147855,87119.0,87105.0,0.0908097]
[1766116550288,0.22958208,87115.0,87105.0,0.0001097]
[1766116550517,0.68934038,87131.0,87115.0,0.0011]
[1766116550676,0.01147815,87122.0,87115.0,0.0011]
[1766116550876,0.01147855,87119.0,87105.0,0.0001097]
[1766116551102,0.0058,87119.0,87105.0,0.0001097]
[1766116551320,0.0058,87119.0,87107.0,0.5913]
[1766116552132,0.01727855,87119.0,87105.0,0.0001097]
[1766116552325,0.0114796,87111.0,87105.0,0.0001097]
[1766116552500,0.24107341,87111.0,87105.0,0.0001097]
[1766116552699,0.01147987,87109.0,87095.0,0.0058]
[1766116553081,0.01147973,87110.0,87095.0,0.0058]
[1766116553341,0.06184433,87112.0,87095.0,0.0965]
[1766116553541,0.05036486,87112.0,87098.0,0.0907]
[1766116553854,0.70086121,87115.0,87098.0,0.0907]
[1766116553855,0.0047,87111.0,87098.0,0.0907]
[1766116554216,0.0047,87111.0,87110.0,0.00094471]
[1766116554816,0.0047,87111.0,87110.0,4.71e-06]
[1766116555222,0.5843,87111.0,87110.0,4.71e-06]
[1766116555616,1.0441,87111.0,87110.0,4.71e-06]
[1766116557005,0.4645,87111.0,87110.0,4.71e-06]
[1766116559047,0.24106656,87113.0,87110.0,4.71e-06]
[1766116559264,0.01147973,87110.0,87098.0,0.5913]
[1766116559471,0.01147987,87109.0,87098.0,0.5913]
[1766116559687,0.2296053,87106.0,87090.0,0.0002]
[1766116559878,0.0058,87105.0,87090.0,0.0002]
[1766116560076,0.0058,87105.0,87094.0,0.5913]
[1766116560512,0.5796,87119.0,87096.0,0.5913]
[1766116560705,0.0058,87118.0,87102.0,0.5913]
[1766116560933,0.0058,87118.0,87103.0,1.06552]
[1766116561415,0.0058,87118.0,87093.0,0.0002]
[1766116561416,0.47127881,87117.0,87097.0,0.0058]
[1766116561624,0.01147921,87114.0,87098.0,0.47422]
[1766116561999,0.01147894,87116.0,87098.0,0.47422]
[1766116562204,0.0114796,87111.0,87098.0,0.47422]
[1766116562387,0.24107489,87110.0,87098.0,0.47422]
[1766116562584,0.01147921,87114.0,87098.0,0.47422]
[1766116562818,0.24106354,87114.0,87098.0,0.47422]
[1766116563020,0.24106677,87113.0,87098.0,0.47422]
[1766116563179,0.01147973,87110.0,87098.0,0.59854]
[1766116563381,0.01147907,87115.0,87098.0,0.59274]
[1766116563578,0.0058,87114.0,87098.0,0.59274]
[1766116564001,0.0058,87113.0,87101.0,0.45232]
[1766116564203,0.0058,87113.0,87103.0,0.59274]
[1766116564806,0.0058,87113.0,87102.0,0.00025693]
[1766116566095,0.01147934,87113.0,87102.0,0.00025693]
[1766116566293,0.0058,87114.0,87102.0,0.00025693]
[1766116566635,0.0058,87114.0,87102.0,0.59299693]
[1766116569407,0.01727921,87114.0,87102.0,0.59299693]
[1766116569655,0.00546705,87114.0,87102.0,0.59299693]
[1766116569862,0.24108034,87108.0,87102.0,0.00025693]
[1766116570069,0.01148,87108.0,87102.0,0.00025693]
[1766116570244,0.01147987,87109.0,87102.0,0.00025693]
[1766116570410,0.24107804,87109.0,87102.0,0.00025693]
[1766116570616,0.24108407,87107.0,87102.0,0.00025693]
[1766116570822,0.000256,87102.0,87094.0,0.0058]
[1766116571202,0.24109456,87103.0,87094.0,0.0058]
[1766116571357,0.0058,87106.0,87094.0,0.0058]
[1766116571544,0.06184538,87104.0,87094.0,0.0058]
[1766116571979,0.01148066,87103.0,87094.0,0.0058]
[1766116572522,0.01148066,87103.0,87093.0,0.0002]
[1766116572706,0.01148079,87102.0,87093.0,0.0002]
[1766116573025,0.01148092,87101.0,87093.0,0.0002]
[1766116573149,0.05036486,87104.0,87093.0,0.0002]
[1766116573353,0.01148066,87103.0,87093.0,0.0002]
[1766116573801,0.29145658,87104.0,87093.0,0.0002]
[1766116574214,0.0058,87106.0,87095.0,0.59391]
[1766116574469,0.0058,87107.0,87099.0,0.59391]
[1766116574683,0.01147973,87110.0,87100.0,1.0836]
[1766116574684,0.01148,87108.0,87100.0,1.0836]
[1766116574913,0.01148013,87107.0,87100.0,1.0836]
[1766116575378,0.24108311,87107.0,87100.0,1.0836]
[1766116575586,0.01148079,87102.0,87097.0,0.0058]
[1766116575789,0.01148013,87107.0,87093.0,0.0002]
[1766116575790,0.0011,87100.0,87093.0,0.0002]
[1766116575924,0.01148079,87102.0,87093.0,0.0002]
[1766116576350,0.01148079,87102.0,87094.0,0.00025205]
[1766116576351,0.24110227,87100.0,87094.0,0.00025205]
[1766116576563,0.24109989,87101.0,87094.0,0.00025205]
[1766116576767,0.01148092,87101.0,87094.0,0.00025205]
[1766116577227,0.24110017,87101.0,87094.0,0.00025205]
[1766116577873,0.24110247,87100.0,87094.0,0.00025205]
[1766116578075,0.01148145,87097.0,87094.0,0.00025205]
[1766116578278,0.24110786,87098.0,87094.0,0.00025205]
[1766116578504,0.24111542,87096.0,87093.0,2.05e-06]
[1766116578727,0.22964485,87091.0,87090.0,2.05e-06]
[1766116578959,0.28000971,87091.0,87090.0,2.05e-06]
[1766116579172,1.34751971,87091.0,87090.0,2.05e-06]
[1766116579396,0.01131703,87072.0,87070.0,0.03038223]
[1766116579627,0.0058,87075.0,87061.0,0.04016369]
[1766116579837,0.0047,87075.0,87067.0,0.00056564]
[1766116580480,0.47485435,87075.0,87067.0,0.00056564]
[1766116580676,0.46337,87075.0,87067.0,0.00056564]
[1766116580891,0.01618435,87075.0,87067.0,0.00056564]
[1766116581480,0.01148448,87074.0,87067.0,0.00056564]
[1766116581683,0.01148474,87072.0,87067.0,0.00056564]
[1766116581815,0.01148501,87070.0,87067.0,0.00056564]
[1766116582057,0.01148553,87066.0,87055.0,0.05]
[1766116582219,0.01148553,87066.0,87055.0,0.05010951]
[1766116582220,0.2297142,87065.0,87055.0,0.05010951]
[1766116582422,0.0058,87069.0,87055.0,0.05010951]
[1766116583029,0.0058,87069.0,87057.0,0.59391]
[1766116583227,0.07855833,87068.0,87055.0,0.05010951]
[1766116583453,0.0058,87069.0,87055.0,0.05010951]
[1766116583652,0.0058,87069.0,87055.0,0.64401951]
[1766116584183,0.01148527,87068.0,87056.0,0.0058]
[1766116584330,0.24119098,87068.0,87056.0,0.0058]
[1766116584530,0.01728514,87069.0,87067.0,0.0008508]
[1766116584733,0.01148527,87068.0,87056.0,0.0058]
[1766116584940,0.24698842,87069.0,87055.0,0.05010951]
[1766116584941,0.05036486,87063.0,87055.0,0.05010951]
[1766116585142,0.05036486,87063.0,87029.0,0.59391]
[1766116585143,0.01148725,87053.0,87029.0,0.59391]
[1766116585359,0.01148751,87051.0,87032.0,0.0058]
[1766116585671,0.62612738,87052.0,87032.0,0.0058]
[1766116585672,0.05036486,87048.0,87045.0,0.0003098]
[1766116585871,4.86e-06,87048.0,87045.0,0.0003098]
[1766116586032,0.0058,87052.0,87045.0,0.0003098]
[1766116586248,0.01148765,87050.0,87045.0,0.0003098]
[1766116586467,0.06185264,87049.0,87045.0,0.0003098]
[1766116586668,0.05036486,87049.0,87045.0,5.98e-05]
[1766116587312,0.22976357,87046.0,87028.0,0.0907]
[1766116587470,0.0114887,87042.0,87028.0,0.0907]
[1766116587670,0.45867,87047.0,87042.0,0.0011]
[1766116587874,0.0058,87048.0,87042.0,0.0011]
[1766116588121,0.0058,87048.0,87028.0,0.58039]
[1766116588122,0.0058,87048.0,87035.0,0.59391]
[1766116588382,0.06185264,87049.0,87035.0,0.59391]
[1766116588383,0.0058,87047.0,87035.0,0.59391]
[1766116588579,0.47015672,87057.0,87037.0,0.59391]
[1766116588806,0.0058,87056.0,87042.0,0.59391]
[1766116589616,0.01148712,87054.0,87041.0,0.48969]
[1766116589912,0.01728685,87056.0,87023.0,0.0002]
[1766116589913,1.06751,87047.0,87025.0,0.0907]
[1766116590089,0.0058,87046.0,87027.0,0.59391]
[1766116590468,0.24117874,87041.0,87026.0,0.0058]
[1766116590672,0.05036486,87048.0,87025.0,0.00010982]
[1766116590673,0.22979824,87033.0,87025.0,0.00010982]
[1766116590902,0.05036486,87034.0,87025.0,0.00010982]
[1766116591103,0.06185462,87034.0,87025.0,0.00010982]
[1766116591315,0.0058,87035.0,87025.0,0.00010982]
[1766116591663,0.01148844,87044.0,87025.0,0.00010982]
[1766116591870,0.08421532,87070.0,87044.0,0.0011]
[1766116591871,0.0058,87045.0,87044.0,0.0011]
[1766116592343,0.0058,87045.0,87025.0,0.00010982]
[1766116592344,0.60884,87042.0,87025.0,0.00010982]
[1766116592548,0.45867,87038.0,87025.0,0.00010982]
[1766116592765,0.01148989,87033.0,87025.0,0.00010982]
[1766116592899,0.01149002,87032.0,87025.0,0.00010982]
[1766116593341,0.01729015,87031.0,87025.0,0.00010982]
[1766116593553,0.0058,87031.0,87025.0,0.00010982]
[1766116594113,0.01148936,87037.0,87025.0,0.00010982]
[1766116594114,0.0058,87033.0,87025.0,0.59401982]
[1766116594329,0.01148936,87037.0,87025.0,0.59401982]
[1766116594537,0.0058,87034.0,87026.0,0.48969]
[1766116594752,0.69992937,87044.0,87025.0,0.00010982]
[1766116594753,0.01148897,87040.0,87027.0,0.59391]
[1766116595188,0.01148897,87040.0,87022.0,0.0058]
[1766116595189,1.06861,87027.0,87007.0,0.59411]
[1766116595410,0.01149187,87018.0,87008.0,1.0836]
[1766116595620,0.01149187,87018.0,87007.0,0.0002]
[1766116595843,0.24131244,87025.0,87017.0,0.00157761]
[1766116596081,0.01149227,87015.0,87007.0,0.0002]
[1766116596294,0.01149227,87015.0,86966.0,0.046]
[1766116596295,0.0114957,86989.0,86967.0,0.59391]
[1766116596475,0.06186122,86984.0,86968.0,0.48969]
[1766116596704,0.24144372,86977.0,86967.0,0.00010991]
[1766116596917,0.22995105,86976.0,86967.0,0.00010991]
[1766116597067,0.01149821,86970.0,86967.0,0.00010991]
[1766116597267,0.0058,86983.0,86967.0,0.00010991]
[1766116597268,0.01149742,86976.0,86967.0,0.00010991]
[1766116597468,0.22996258,86971.0,86967.0,0.00010991]
[1766116597675,0.22996732,86969.0,86967.0,0.00010991]
[1766116598065,0.01149702,86979.0,86958.0,0.0058]
[1766116598266,0.01149729,86977.0,86959.0,0.0058]
[1766116598475,0.0058,86985.0,86951.0,0.05001839]
[1766116598656,0.0058,86984.0,86953.0,0.05001839]
[1766116598854,0.22994598,86977.0,86953.0,0.05001839]
[1766116599052,0.01149861,86967.0,86951.0,0.00036894]
[1766116599292,0.01149848,86968.0,86956.0,0.59391]
[1766116599492,0.01149848,86968.0,86954.0,0.48969]
[1766116599493,0.01149901,86964.0,86954.0,0.48969]
[1766116599695,0.01149927,86962.0,86954.0,0.48969]
[1766116599883,0.01149901,86964.0,86952.0,0.0058]
[1766116600053,0.01149729,86977.0,86954.0,0.48969]
[1766116600247,0.99145907,86990.0,86952.0,0.0058]
[1766116600248,0.01729702,86979.0,86960.0,0.48969]
[1766116600455,0.01149755,86975.0,86964.0,0.59391]
[1766116600698,0.01149768,86974.0,86964.0,0.59391]
[1766116600926,0.01149782,86973.0,86964.0,0.59391]
[1766116601130,0.01149755,86975.0,86964.0,0.59391]